[Event "*** Titled Tuesday Blitz"]
[Site "Chess.com"]
[Date "2018.11.06"]
[Round "2"]
[White "nearestway"]
[Black "lucasmito"]
[Result "1-0"]
[WhiteElo "2506"]
[BlackElo "2466"]
[TimeControl "180+2"]
[EndTime "13:21:02 PST"]
[Termination "nearestway won by resignation"]

1. Nf3 {[%clk 0:03:01.9]} 1... Nf6 {[%clk 0:03:00]} 2. c4 {[%clk 0:03:02]} 2...
c5 {[%clk 0:03:00.8]} 3. Nc3 {[%clk 0:03:02.1]} 3... d5 {[%clk 0:03:00.9]} 4.
cxd5 {[%clk 0:03:00.2]} 4... Nxd5 {[%clk 0:03:02.8]} 5. g3 {[%clk 0:02:58.6]}
5... g6 {[%clk 0:03:02.5]} 6. Bg2 {[%clk 0:02:57.4]} 6... Nc6 {[%clk 0:03:03.3]}
7. O-O {[%clk 0:02:57.9]} 7... Bg7 {[%clk 0:03:03.2]} 8. Nxd5 {[%clk 0:02:52.9]}
8... Qxd5 {[%clk 0:03:02.1]} 9. d3 {[%clk 0:02:53.7]} 9... O-O {[%clk
0:02:52.8]} 10. a3 {[%clk 0:02:45]} 10... Bd7 {[%clk 0:02:36.5]} 11. Rb1 {[%clk
0:02:37.7]} 11... Rac8 {[%clk 0:02:36.3]} 12. Be3 {[%clk 0:02:33.4]} 12... Qh5
{[%clk 0:02:24.1]} 13. b4 {[%clk 0:02:24.2]} 13... cxb4 {[%clk 0:02:21.1]} 14.
axb4 {[%clk 0:02:26.1]} 14... b6 {[%clk 0:02:19.1]} 15. Qa4 {[%clk 0:02:24.4]}
15... a5 {[%clk 0:02:08.7]} 16. b5 {[%clk 0:02:21.5]} 16... Nb4 {[%clk
0:01:17.1]} 17. Bxb6 {[%clk 0:02:21.5]} 17... Nd5 {[%clk 0:01:16]} 18. Bd4
{[%clk 0:02:19]} 18... Nc3 {[%clk 0:01:15.3]} 19. Bxc3 {[%clk 0:02:20.1]} 19...
Bxc3 {[%clk 0:01:15.7]} 20. Nd4 {[%clk 0:02:18.6]} 20... Rfd8 {[%clk 0:01:14.6]}
21. Bf3 {[%clk 0:02:10.6]} 21... Qe5 {[%clk 0:01:13.6]} 22. Nc6 {[%clk
0:02:11.6]} 22... Bxc6 {[%clk 0:01:12.1]} 23. bxc6 {[%clk 0:02:13.5]} 23... Rd4
{[%clk 0:01:10.5]} 24. Qa2 {[%clk 0:02:12.6]} 24... Rb4 {[%clk 0:01:09.5]} 25.
Rbc1 {[%clk 0:02:09.9]} 25... Bd4 {[%clk 0:01:07.8]} 26. e3 {[%clk 0:02:09.7]}
26... Bb6 {[%clk 0:01:08.6]} 27. Rb1 {[%clk 0:02:08.8]} 27... Rb8 {[%clk
0:01:06.9]} 28. d4 {[%clk 0:02:08.2]} 28... Qf5 {[%clk 0:01:05.7]} 29. Rxb4
{[%clk 0:02:06.3]} 29... axb4 {[%clk 0:01:06.8]} 30. Bd1 {[%clk 0:02:06.5]}
30... e6 {[%clk 0:01:04.3]} 31. Bb3 {[%clk 0:02:05.9]} 31... Qf6 {[%clk
0:01:03.2]} 32. Rc1 {[%clk 0:02:02.4]} 32... Bc7 {[%clk 0:01:02]} 33. Ra1 {[%clk
0:01:59.7]} 33... Qd8 {[%clk 0:01:00.4]} 34. Qc2 {[%clk 0:02:00.6]} 34... Rb6
{[%clk 0:00:59.1]} 35. Qe4 {[%clk 0:01:58.6]} 35... Kg7 {[%clk 0:00:58.5]} 36.
Qc2 {[%clk 0:01:57.5]} 36... h5 {[%clk 0:00:56]} 37. h4 {[%clk 0:01:55.3]} 37...
Qd6 {[%clk 0:00:57.4]} 38. Rc1 {[%clk 0:01:54]} 38... Rb8 {[%clk 0:00:58.9]} 39.
Kg2 {[%clk 0:01:53]} 39... Rb6 {[%clk 0:00:58.3]} 40. Qe4 {[%clk 0:01:52.7]}
40... Kf8 {[%clk 0:00:57.3]} 41. Qc2 {[%clk 0:01:50.3]} 41... Kg7 {[%clk
0:00:57.7]} 42. Qc4 {[%clk 0:01:51.1]} 42... f5 {[%clk 0:00:57.9]} 43. Qc2
{[%clk 0:01:47.5]} 43... Rb8 {[%clk 0:00:56.1]} 44. e4 {[%clk 0:01:46.4]} 44...
Rc8 {[%clk 0:00:55.9]} 45. Qd3 {[%clk 0:01:45.8]} 45... Bb6 {[%clk 0:00:54.7]}
46. exf5 {[%clk 0:01:44.4]} 46... exf5 {[%clk 0:00:50.5]} 47. d5 {[%clk
0:01:44]} 47... Rc7 {[%clk 0:00:49.9]} 48. Qa6 {[%clk 0:01:44.5]} 48... Ba7
{[%clk 0:00:48.1]} 49. Re1 {[%clk 0:01:36.6]} 49... f4 {[%clk 0:00:47]} 50. Re6
{[%clk 0:01:34.6]} 50... f3+ {[%clk 0:00:45.1]} 51. Kh3 {[%clk 0:01:32.3]} 51...
Qf8 {[%clk 0:00:43.4]} 52. Qa5 {[%clk 0:01:33]} 52... Qf5+ {[%clk 0:00:41.2]}
53. Kh2 {[%clk 0:01:33.9]} 53... Rf7 {[%clk 0:00:40.7]} 54. Qa1+ {[%clk
0:01:32.5]} 54... Kh6 {[%clk 0:00:42]} 55. Qc1+ {[%clk 0:01:30.6]} 55... Kh7
{[%clk 0:00:39.3]} 56. Bc2 {[%clk 0:01:27.8]} 56... Qg4 {[%clk 0:00:40.2]} 57.
Rxg6 {[%clk 0:01:26.3]} 1-0

[Event "*** Titled Tuesday Blitz"]
[Site "Chess.com"]
[Date "2018.11.06"]
[Round "2"]
[White "GMMelik"]
[Black "Sordis"]
[Result "1-0"]
[WhiteElo "2441"]
[BlackElo "2268"]
[TimeControl "180+2"]
[EndTime "13:21:03 PST"]
[Termination "GMMelik won by resignation"]

1. e4 {[%clk 0:03:01.9]} 1... c5 {[%clk 0:03:01]} 2. Nf3 {[%clk 0:03:02.4]} 2...
d6 {[%clk 0:03:02.6]} 3. d4 {[%clk 0:03:03]} 3... cxd4 {[%clk 0:03:04.5]} 4.
Nxd4 {[%clk 0:03:03.8]} 4... Nf6 {[%clk 0:03:06]} 5. Nc3 {[%clk 0:03:05]} 5...
g6 {[%clk 0:03:07.2]} 6. Be3 {[%clk 0:03:05.4]} 6... Bg7 {[%clk 0:03:08.6]} 7.
f3 {[%clk 0:03:06.8]} 7... O-O {[%clk 0:03:10.1]} 8. Qd2 {[%clk 0:03:08.2]} 8...
Nc6 {[%clk 0:03:11.6]} 9. O-O-O {[%clk 0:03:09.3]} 9... d5 {[%clk 0:03:12.9]}
10. Qe1 {[%clk 0:03:07.6]} 10... e6 {[%clk 0:03:14.2]} 11. exd5 {[%clk
0:03:02.2]} 11... exd5 {[%clk 0:03:13.3]} 12. Qh4 {[%clk 0:02:43.8]} 12... Re8
{[%clk 0:02:35.1]} 13. Bg5 {[%clk 0:02:36]} 13... Nxd4 {[%clk 0:02:33.3]} 14.
Rxd4 {[%clk 0:02:19.9]} 14... Qb6 {[%clk 0:02:34.2]} 15. Bxf6 {[%clk 0:01:23.9]}
15... Qxf6 {[%clk 0:01:02.5]} 16. Qxf6 {[%clk 0:01:22.5]} 16... Bxf6 {[%clk
0:01:03.9]} 17. Rxd5 {[%clk 0:01:22.4]} 17... Bxc3 {[%clk 0:01:05.4]} 18. bxc3
{[%clk 0:01:23]} 18... Be6 {[%clk 0:01:06.4]} 19. Rd4 {[%clk 0:01:17]} 19...
Rec8 {[%clk 0:01:06.5]} 20. Kb2 {[%clk 0:01:17.8]} 20... Rc7 {[%clk 0:01:06.6]}
21. c4 {[%clk 0:00:56.5]} 21... Rac8 {[%clk 0:01:06.1]} 22. Kc3 {[%clk
0:00:39.9]} 22... b5 {[%clk 0:00:48.1]} 23. Bd3 {[%clk 0:00:40.8]} 23... Bxc4
{[%clk 0:00:47.7]} 24. Bxc4 {[%clk 0:00:41.7]} 24... Rxc4+ {[%clk 0:00:48]} 25.
Rxc4 {[%clk 0:00:43]} 25... Rxc4+ {[%clk 0:00:49.1]} 26. Kb3 {[%clk 0:00:44.2]}
26... Kf8 {[%clk 0:00:50]} 27. Rd1 {[%clk 0:00:44.4]} 27... Ke7 {[%clk
0:00:46.4]} 28. c3 {[%clk 0:00:45.8]} 28... a6 {[%clk 0:00:47.3]} 29. g3 {[%clk
0:00:41.5]} 29... h6 {[%clk 0:00:43.5]} 30. h4 {[%clk 0:00:41.7]} 30... h5
{[%clk 0:00:39.9]} 31. Rd5 {[%clk 0:00:41.7]} 31... Rc6 {[%clk 0:00:26.1]} 32.
g4 {[%clk 0:00:40.7]} 32... hxg4 {[%clk 0:00:26.8]} 33. fxg4 {[%clk 0:00:42.6]}
33... Rc4 {[%clk 0:00:28]} 34. Rd4 {[%clk 0:00:41.4]} 34... Rxd4 {[%clk
0:00:17.9]} 35. cxd4 {[%clk 0:00:43.3]} 35... f5 {[%clk 0:00:19.2]} 36. gxf5
{[%clk 0:00:41.9]} 36... gxf5 {[%clk 0:00:21.1]} 37. Kc2 {[%clk 0:00:35.4]}
37... a5 {[%clk 0:00:21.8]} 38. h5 {[%clk 0:00:36.3]} 38... b4 {[%clk 0:00:23]}
39. h6 {[%clk 0:00:36.2]} 39... Kf6 {[%clk 0:00:23.8]} 40. d5 {[%clk 0:00:37.5]}
40... f4 {[%clk 0:00:25.1]} 41. d6 {[%clk 0:00:38.5]} 41... f3 {[%clk
0:00:25.6]} 42. d7 {[%clk 0:00:38.4]} 42... Ke7 {[%clk 0:00:24.3]} 43. h7 {[%clk
0:00:39.8]} 43... f2 {[%clk 0:00:25]} 44. d8=Q+ {[%clk 0:00:41.1]} 44... Kxd8
{[%clk 0:00:25.9]} 45. h8=Q+ {[%clk 0:00:42.5]} 45... Kc7 {[%clk 0:00:27.8]} 46.
Qf6 {[%clk 0:00:43.5]} 1-0

[Event "*** Titled Tuesday Blitz"]
[Site "Chess.com"]
[Date "2018.11.06"]
[Round "2"]
[White "Alexander_Moskalenko"]
[Black "pultineviciuspaulius"]
[Result "1-0"]
[WhiteElo "2874"]
[BlackElo "2572"]
[TimeControl "180+2"]
[EndTime "13:21:06 PST"]
[Termination "Alexander_Moskalenko won on time"]

1. e4 {[%clk 0:03:01.9]} 1... e5 {[%clk 0:02:59.8]} 2. Nf3 {[%clk 0:03:03.4]}
2... Nc6 {[%clk 0:03:01.1]} 3. Bc4 {[%clk 0:03:03.8]} 3... Nf6 {[%clk
0:03:01.4]} 4. Ng5 {[%clk 0:03:03.2]} 4... d5 {[%clk 0:03:01.5]} 5. exd5 {[%clk
0:03:05.1]} 5... Na5 {[%clk 0:03:02.9]} 6. Bb5+ {[%clk 0:03:03.6]} 6... c6
{[%clk 0:03:04]} 7. dxc6 {[%clk 0:03:05.5]} 7... bxc6 {[%clk 0:03:04.9]} 8. Bd3
{[%clk 0:03:01.8]} 8... h6 {[%clk 0:02:58.2]} 9. Ne4 {[%clk 0:02:58.2]} 9... Nd5
{[%clk 0:02:59.3]} 10. O-O {[%clk 0:02:57.1]} 10... g6 {[%clk 0:02:46]} 11. Nbc3
{[%clk 0:02:50.9]} 11... Nf4 {[%clk 0:02:45.2]} 12. Be2 {[%clk 0:02:50.6]} 12...
Bg7 {[%clk 0:02:43.2]} 13. d3 {[%clk 0:02:51.6]} 13... O-O {[%clk 0:02:39.2]}
14. Bf3 {[%clk 0:02:52.8]} 14... Ne6 {[%clk 0:02:32]} 15. g3 {[%clk 0:02:50.5]}
15... Nd4 {[%clk 0:02:30]} 16. Bg2 {[%clk 0:02:51.8]} 16... Qe7 {[%clk
0:02:20.4]} 17. Re1 {[%clk 0:02:49.9]} 17... Be6 {[%clk 0:02:18.6]} 18. a4
{[%clk 0:02:41.4]} 18... Rfd8 {[%clk 0:02:16.7]} 19. b3 {[%clk 0:02:41.2]} 19...
Rac8 {[%clk 0:01:59]} 20. Ba3 {[%clk 0:02:40.4]} 20... c5 {[%clk 0:02:00.4]} 21.
Nxc5 {[%clk 0:02:35]} 21... Rxc5 {[%clk 0:01:57.9]} 22. Ne4 {[%clk 0:02:35.9]}
22... Nb7 {[%clk 0:01:54.5]} 23. Nxc5 {[%clk 0:02:26.1]} 23... Nxc5 {[%clk
0:01:54]} 24. Rb1 {[%clk 0:01:51.5]} 24... Qc7 {[%clk 0:01:48.4]} 25. c4 {[%clk
0:01:47.7]} 25... a5 {[%clk 0:01:46]} 26. b4 {[%clk 0:01:45.6]} 26... axb4
{[%clk 0:01:45.9]} 27. Bxb4 {[%clk 0:01:47.5]} 27... Bf5 {[%clk 0:01:43.7]} 28.
Bxc5 {[%clk 0:01:43.7]} 28... Qxc5 {[%clk 0:01:45.6]} 29. Be4 {[%clk 0:01:45]}
29... Bxe4 {[%clk 0:01:35.8]} 30. Rxe4 {[%clk 0:01:46.9]} 30... f5 {[%clk
0:01:36.8]} 31. Re3 {[%clk 0:01:46.9]} 31... Qc6 {[%clk 0:01:35.3]} 32. a5
{[%clk 0:01:36]} 32... e4 {[%clk 0:01:22.5]} 33. dxe4 {[%clk 0:01:34.3]} 33...
fxe4 {[%clk 0:01:24.3]} 34. Qg4 {[%clk 0:01:35.2]} 34... Nf3+ {[%clk 0:01:22.9]}
35. Kg2 {[%clk 0:01:35.1]} 35... h5 {[%clk 0:01:19.8]} 36. Qxe4 {[%clk
0:01:35.9]} 36... Qxe4 {[%clk 0:00:36.5]} 37. Rxe4 {[%clk 0:01:37.8]} 37... Nd2
{[%clk 0:00:37.4]} 38. Rd1 {[%clk 0:01:38.6]} 38... Bc3 {[%clk 0:00:37.3]} 39.
a6 {[%clk 0:01:39.9]} 39... Ra8 {[%clk 0:00:38.4]} 40. Re3 {[%clk 0:01:36.3]}
40... Bb4 {[%clk 0:00:38.6]} 41. Re6 {[%clk 0:01:36.5]} 41... Kf7 {[%clk
0:00:36.4]} 42. Rb6 {[%clk 0:01:35.9]} 42... Bc3 {[%clk 0:00:37]} 43. Rc6 {[%clk
0:01:36.9]} 43... Ra7 {[%clk 0:00:32.5]} 44. h4 {[%clk 0:01:36.8]} 44... Kg7
{[%clk 0:00:32.4]} 45. c5 {[%clk 0:01:34.9]} 45... Rf7 {[%clk 0:00:25.9]} 46.
Rb6 {[%clk 0:01:33.9]} 46... Kh6 {[%clk 0:00:19.2]} 47. Rb7 {[%clk 0:01:31.5]}
47... Rf6 {[%clk 0:00:18.2]} 48. a7 {[%clk 0:01:30.4]} 48... Ra6 {[%clk
0:00:20.1]} 49. c6 {[%clk 0:01:26.9]} 1-0

[Event "*** Titled Tuesday Blitz"]
[Site "Chess.com"]
[Date "2018.11.06"]
[Round "2"]
[White "pKiLz5Rn9b"]
[Black "MFBerna"]
[Result "0-1"]
[WhiteElo "2707"]
[BlackElo "2361"]
[TimeControl "180+2"]
[EndTime "13:21:06 PST"]
[Termination "MFBerna won on time"]

1. b3 {[%clk 0:03:01.9]} 1... e5 {[%clk 0:03:00.8]} 2. Bb2 {[%clk 0:03:03.6]}
2... Nc6 {[%clk 0:03:02.4]} 3. e3 {[%clk 0:03:05.2]} 3... d5 {[%clk 0:03:03.6]}
4. Bb5 {[%clk 0:02:57.1]} 4... Bd6 {[%clk 0:03:04.3]} 5. Nf3 {[%clk 0:02:53.6]}
5... Qe7 {[%clk 0:03:03.4]} 6. c4 {[%clk 0:02:43.5]} 6... dxc4 {[%clk
0:02:54.7]} 7. bxc4 {[%clk 0:02:44.3]} 7... Bd7 {[%clk 0:02:46.7]} 8. Nc3 {[%clk
0:02:43.3]} 8... Nf6 {[%clk 0:02:47.3]} 9. Nd5 {[%clk 0:02:40.5]} 9... Nxd5
{[%clk 0:02:38.1]} 10. cxd5 {[%clk 0:02:42.4]} 10... Nb4 {[%clk 0:02:39.3]} 11.
Bxd7+ {[%clk 0:02:42.6]} 11... Qxd7 {[%clk 0:02:41.2]} 12. Qb3 {[%clk
0:02:43.4]} 12... e4 {[%clk 0:02:27.9]} 13. Ne5 {[%clk 0:02:22.9]} 13... Bxe5
{[%clk 0:02:13.8]} 14. Qxb4 {[%clk 0:02:24]} 14... Qxd5 {[%clk 0:02:06.6]} 15.
Bxe5 {[%clk 0:02:17.9]} 15... Qxe5 {[%clk 0:02:08.5]} 16. O-O {[%clk 0:02:19]}
16... O-O-O {[%clk 0:01:58.7]} 17. Rfc1 {[%clk 0:02:15]} 17... Kb8 {[%clk
0:01:52.2]} 18. Rab1 {[%clk 0:02:15]} 18... b6 {[%clk 0:01:52.5]} 19. a4 {[%clk
0:02:15.3]} 19... a5 {[%clk 0:01:43.5]} 20. Qc4 {[%clk 0:02:15.1]} 20... f5
{[%clk 0:01:06.8]} 21. Rb5 {[%clk 0:02:12.2]} 21... Qd6 {[%clk 0:01:08]} 22.
Rxf5 {[%clk 0:02:07.1]} 22... Rhe8 {[%clk 0:01:01.9]} 23. Rc2 {[%clk 0:01:58.9]}
23... Re7 {[%clk 0:01:00.1]} 24. Rf4 {[%clk 0:01:58.9]} 24... Qd3 {[%clk
0:00:36.2]} 25. Qc6 {[%clk 0:01:54.4]} 25... g5 {[%clk 0:00:24.6]} 26. Rf5
{[%clk 0:01:49.1]} 26... Qe2 {[%clk 0:00:16.9]} 27. h3 {[%clk 0:01:44]} 27... g4
{[%clk 0:00:15.3]} 28. hxg4 {[%clk 0:01:44.1]} 28... Qxg4 {[%clk 0:00:15.9]} 29.
Rb5 {[%clk 0:01:20.1]} 29... Qd1+ {[%clk 0:00:15.4]} 30. Kh2 {[%clk 0:01:21]}
30... Rg8 {[%clk 0:00:15]} 31. Rcb2 {[%clk 0:00:50.8]} 31... Rxg2+ {[%clk
0:00:10.8]} 32. Kxg2 {[%clk 0:00:50.1]} 32... Rg7+ {[%clk 0:00:11.9]} 0-1

[Event "*** Titled Tuesday Blitz"]
[Site "Chess.com"]
[Date "2018.11.06"]
[Round "2"]
[White "alishersuleymenov"]
[Black "ruvat"]
[Result "1-0"]
[WhiteElo "2495"]
[BlackElo "2297"]
[TimeControl "180+2"]
[EndTime "13:21:12 PST"]
[Termination "alishersuleymenov won on time"]

1. d4 {[%clk 0:03:01.9]} 1... d6 {[%clk 0:02:57.5]} 2. Nf3 {[%clk 0:02:59.8]}
2... g6 {[%clk 0:02:55.9]} 3. c4 {[%clk 0:02:58.7]} 3... Bg7 {[%clk 0:02:55.6]}
4. Nc3 {[%clk 0:03:00.1]} 4... Bg4 {[%clk 0:02:53.6]} 5. g3 {[%clk 0:02:53.9]}
5... Bxf3 {[%clk 0:02:51.6]} 6. exf3 {[%clk 0:02:54.5]} 6... Nc6 {[%clk
0:02:47]} 7. Be3 {[%clk 0:02:48.1]} 7... e5 {[%clk 0:02:45.4]} 8. dxe5 {[%clk
0:02:46]} 8... dxe5 {[%clk 0:02:45.5]} 9. Qb3 {[%clk 0:02:37.3]} 9... Nge7
{[%clk 0:02:35.8]} 10. Bg2 {[%clk 0:02:36.3]} 10... Nd4 {[%clk 0:02:29.3]} 11.
Bxd4 {[%clk 0:02:33.3]} 11... exd4 {[%clk 0:02:30.4]} 12. Ne4 {[%clk 0:02:34.9]}
12... O-O {[%clk 0:02:22.7]} 13. O-O {[%clk 0:02:35.5]} 13... b6 {[%clk
0:02:18.9]} 14. f4 {[%clk 0:02:34]} 14... c5 {[%clk 0:02:17.4]} 15. Rfe1 {[%clk
0:02:27.1]} 15... Qc7 {[%clk 0:02:16.2]} 16. Re2 {[%clk 0:02:25.9]} 16... Rad8
{[%clk 0:02:05]} 17. Rae1 {[%clk 0:02:26.3]} 17... Nc6 {[%clk 0:02:00.5]} 18. a3
{[%clk 0:02:18.8]} 18... Qd7 {[%clk 0:01:54.3]} 19. Qd3 {[%clk 0:02:18.1]} 19...
Rfe8 {[%clk 0:01:51.1]} 20. h4 {[%clk 0:01:58.3]} 20... Re7 {[%clk 0:01:46]} 21.
Kh2 {[%clk 0:01:16.5]} 21... Qc7 {[%clk 0:01:28.1]} 22. Ng5 {[%clk 0:00:58.6]}
22... Rde8 {[%clk 0:01:22.3]} 23. Bxc6 {[%clk 0:00:48.6]} 23... Rxe2 {[%clk
0:01:17.2]} 24. Bxe8 {[%clk 0:00:42.8]} 24... Rxe1 {[%clk 0:01:13.7]} 25. Bxf7+
{[%clk 0:00:44]} 25... Kh8 {[%clk 0:01:13.8]} 26. Bxg6 {[%clk 0:00:40.9]} 26...
hxg6 {[%clk 0:01:03]} 27. Qxg6 {[%clk 0:00:41.2]} 27... Kg8 {[%clk 0:00:53.2]}
28. h5 {[%clk 0:00:32.6]} 28... d3 {[%clk 0:00:22]} 29. h6 {[%clk 0:00:28.5]}
29... d2 {[%clk 0:00:17.1]} 30. Qh7+ {[%clk 0:00:24.8]} 30... Kf8 {[%clk
0:00:17.2]} 31. Qf5+ {[%clk 0:00:25.9]} 31... Kg8 {[%clk 0:00:11.7]} 32. Qd5+
{[%clk 0:00:26.9]} 32... Kh8 {[%clk 0:00:07.1]} 33. Nf7+ {[%clk 0:00:25.8]}
33... Kh7 {[%clk 0:00:07]} 34. Qf5+ {[%clk 0:00:26.2]} 34... Kg8 {[%clk
0:00:02.6]} 35. h7+ {[%clk 0:00:27.7]} 35... Kf8 {[%clk 0:00:03.8]} 36. Ne5+
{[%clk 0:00:25.8]} 1-0

[Event "*** Titled Tuesday Blitz"]
[Site "Chess.com"]
[Date "2018.11.06"]
[Round "2"]
[White "GianmarcoVaR"]
[Black "PowerThinking2650"]
[Result "1-0"]
[WhiteElo "2496"]
[BlackElo "2291"]
[TimeControl "180+2"]
[EndTime "13:21:14 PST"]
[Termination "GianmarcoVaR won by resignation"]

1. d4 {[%clk 0:03:01.9]} 1... Nf6 {[%clk 0:03:00.8]} 2. c4 {[%clk 0:03:02.8]}
2... g6 {[%clk 0:03:02]} 3. g3 {[%clk 0:03:04.1]} 3... Bg7 {[%clk 0:03:03.2]} 4.
Bg2 {[%clk 0:03:05.4]} 4... O-O {[%clk 0:03:04.3]} 5. Nc3 {[%clk 0:03:06.6]}
5... d6 {[%clk 0:03:05.4]} 6. Nf3 {[%clk 0:03:07.8]} 6... Nbd7 {[%clk
0:03:06.9]} 7. O-O {[%clk 0:03:09]} 7... e5 {[%clk 0:03:08.4]} 8. e4 {[%clk
0:03:10.3]} 8... exd4 {[%clk 0:03:09.6]} 9. Nxd4 {[%clk 0:03:11.5]} 9... Re8
{[%clk 0:03:11]} 10. h3 {[%clk 0:03:11.6]} 10... Nc5 {[%clk 0:03:11.4]} 11. Re1
{[%clk 0:03:12.8]} 11... Bd7 {[%clk 0:03:07.6]} 12. b3 {[%clk 0:03:09.8]} 12...
Qc8 {[%clk 0:03:07.1]} 13. Kh2 {[%clk 0:03:09.3]} 13... Re5 {[%clk 0:03:07.2]}
14. f3 {[%clk 0:01:40.5]} 14... Rh5 {[%clk 0:02:18.6]} 15. h4 {[%clk 0:01:41.1]}
15... Re5 {[%clk 0:02:11.3]} 16. Bf4 {[%clk 0:01:14.5]} 16... Re8 {[%clk
0:02:10.4]} 17. Qd2 {[%clk 0:01:15.7]} 17... Nh5 {[%clk 0:02:03.2]} 18. Be3
{[%clk 0:01:11.6]} 18... Be5 {[%clk 0:02:03.6]} 19. Nce2 {[%clk 0:01:05.1]}
19... Qd8 {[%clk 0:02:03.4]} 20. Bg5 {[%clk 0:01:05.6]} 20... f6 {[%clk
0:02:02.6]} 21. Be3 {[%clk 0:01:05.4]} 21... f5 {[%clk 0:02:01.6]} 22. Bg5
{[%clk 0:01:06]} 22... Qc8 {[%clk 0:01:56]} 23. exf5 {[%clk 0:01:04.8]} 23...
Bxf5 {[%clk 0:01:42.6]} 24. Rad1 {[%clk 0:00:52]} 24... Nd3 {[%clk 0:01:05.4]}
25. Nxf5 {[%clk 0:00:51.9]} 25... Nxe1 {[%clk 0:00:57.1]} 26. Nh6+ {[%clk
0:00:51.8]} 26... Kg7 {[%clk 0:00:57.8]} 27. Rxe1 {[%clk 0:00:52.4]} 27... Rf8
{[%clk 0:00:50.5]} 28. Bh3 {[%clk 0:00:39.5]} 28... Qe8 {[%clk 0:00:44.6]} 29.
f4 {[%clk 0:00:38.5]} 29... Bf6 {[%clk 0:00:45.6]} 30. Nd4 {[%clk 0:00:39]}
30... Qb8 {[%clk 0:00:20.1]} 31. Ne6+ {[%clk 0:00:38.4]} 31... Kh8 {[%clk
0:00:21.2]} 32. g4 {[%clk 0:00:26.8]} 32... Ng7 {[%clk 0:00:19.9]} 33. Bxf6
{[%clk 0:00:26.2]} 33... Rxf6 {[%clk 0:00:19.8]} 34. Qd4 {[%clk 0:00:26.4]}
34... Rxe6 {[%clk 0:00:19.6]} 35. Rxe6 {[%clk 0:00:26.7]} 35... Qf8 {[%clk
0:00:20.9]} 36. g5 {[%clk 0:00:25.6]} 36... c5 {[%clk 0:00:21.6]} 37. Qf6 {[%clk
0:00:20.9]} 37... Qxf6 {[%clk 0:00:17.9]} 38. Rxf6 {[%clk 0:00:21.7]} 38... Re8
{[%clk 0:00:18.9]} 39. Bg2 {[%clk 0:00:22.3]} 39... b5 {[%clk 0:00:19.4]} 40.
cxb5 {[%clk 0:00:22.5]} 40... a6 {[%clk 0:00:20.4]} 41. bxa6 {[%clk 0:00:23.6]}
41... Ra8 {[%clk 0:00:21.5]} 42. Bxa8 {[%clk 0:00:22.8]} 1-0

[Event "*** Titled Tuesday Blitz"]
[Site "Chess.com"]
[Date "2018.11.06"]
[Round "2"]
[White "MITerryble"]
[Black "FMJoseHerrera"]
[Result "1-0"]
[WhiteElo "2754"]
[BlackElo "2525"]
[TimeControl "180+2"]
[EndTime "13:21:16 PST"]
[Termination "MITerryble won on time"]

1. e4 {[%clk 0:03:01.9]} 1... c5 {[%clk 0:03:00.3]} 2. Nf3 {[%clk 0:03:02.8]}
2... e6 {[%clk 0:03:02]} 3. Nc3 {[%clk 0:03:03.1]} 3... a6 {[%clk 0:03:02.7]} 4.
g3 {[%clk 0:03:03.4]} 4... Qc7 {[%clk 0:03:03.5]} 5. Bg2 {[%clk 0:03:00.8]} 5...
b5 {[%clk 0:02:53.5]} 6. O-O {[%clk 0:02:57.7]} 6... Bb7 {[%clk 0:02:54.8]} 7.
d3 {[%clk 0:02:56.7]} 7... d6 {[%clk 0:02:54.1]} 8. Ng5 {[%clk 0:02:44.8]} 8...
Nf6 {[%clk 0:02:45.9]} 9. f4 {[%clk 0:02:43.8]} 9... Nbd7 {[%clk 0:02:46.3]} 10.
Bd2 {[%clk 0:02:34.6]} 10... Be7 {[%clk 0:02:46.9]} 11. Qe2 {[%clk 0:02:30.2]}
11... h6 {[%clk 0:02:35.6]} 12. Nh3 {[%clk 0:02:28.6]} 12... h5 {[%clk
0:02:31.6]} 13. Ng5 {[%clk 0:02:27.1]} 13... h4 {[%clk 0:02:32.4]} 14. g4 {[%clk
0:02:27.9]} 14... h3 {[%clk 0:02:32.3]} 15. Nxh3 {[%clk 0:02:25.3]} 15... g6
{[%clk 0:02:22.6]} 16. Ng5 {[%clk 0:02:23.9]} 16... c4 {[%clk 0:02:11.6]} 17. d4
{[%clk 0:02:24.1]} 17... b4 {[%clk 0:02:03.5]} 18. Nd1 {[%clk 0:02:23.8]} 18...
a5 {[%clk 0:01:58]} 19. c3 {[%clk 0:02:24.1]} 19... e5 {[%clk 0:01:57.3]} 20.
fxe5 {[%clk 0:01:52.6]} 20... dxe5 {[%clk 0:01:57]} 21. d5 {[%clk 0:01:52.1]}
21... Nc5 {[%clk 0:01:30.3]} 22. Nf2 {[%clk 0:01:37.6]} 22... Rd8 {[%clk
0:01:18.8]} 23. Be3 {[%clk 0:01:24.7]} 23... Nd3 {[%clk 0:01:08.2]} 24. Nxd3
{[%clk 0:01:19.3]} 24... cxd3 {[%clk 0:01:10.1]} 25. Qf3 {[%clk 0:01:20.1]}
25... bxc3 {[%clk 0:01:08.4]} 26. bxc3 {[%clk 0:01:22]} 26... Bc8 {[%clk
0:01:08]} 27. Nxf7 {[%clk 0:01:04.2]} 27... Kxf7 {[%clk 0:01:08.7]} 28. g5
{[%clk 0:01:04.8]} 28... Rdf8 {[%clk 0:00:51.9]} 29. gxf6 {[%clk 0:01:02.2]}
29... Bc5 {[%clk 0:00:53.5]} 30. Qf2 {[%clk 0:00:21]} 30... Bd6 {[%clk
0:00:41.1]} 31. Rac1 {[%clk 0:00:21.1]} 31... Ba3 {[%clk 0:00:38.9]} 32. Rb1
{[%clk 0:00:21.8]} 32... Qxc3 {[%clk 0:00:39.3]} 33. Rb3 {[%clk 0:00:21.8]}
33... Qc7 {[%clk 0:00:18.3]} 34. Rxa3 {[%clk 0:00:22.7]} 34... Rh5 {[%clk
0:00:20.2]} 35. Qd2 {[%clk 0:00:20.9]} 35... Rfh8 {[%clk 0:00:20.6]} 36. Qxa5
{[%clk 0:00:21.8]} 36... Rxh2 {[%clk 0:00:21.3]} 37. Qxc7+ {[%clk 0:00:22.6]}
1-0